fUSD/lending_fUSD_20241016
["ID","MTS","AMOUNT","RATE_DAILY","PERIOD"]
[340335056,1729061440029,-151.0,0.00012329,2]
[340335057,1729061440039,-151.0,0.00012329,2]
[340335058,1729061440050,-151.0,0.00012329,2]
[340335059,1729061440059,-151.0,0.00012329,2]
[340335060,1729061440068,-279.230455,0.00012329,2]
[340335061,1729061440078,-151.0,0.00012329,2]
[340335062,1729061440087,-151.0,0.00012329,2]
[340335063,1729061440096,-151.0,0.00012329,2]
[340335064,1729061440107,-151.0,0.00012329,2]
[340335065,1729061440117,-151.0,0.00012329,2]
[340335066,1729061440126,-151.0,0.00012329,2]
[340335067,1729061440136,-151.0,0.00012329,2]
[340335068,1729061440145,-151.0,0.00012329,2]
[340335069,1729061440154,-151.0,0.00012329,2]
[340335070,1729061440164,-151.0,0.00012329,2]
[340335071,1729061440173,-151.0,0.00012329,2]
[340335072,1729061440182,-151.0,0.00012329,2]
[340335073,1729061440192,-151.0,0.00012329,2]
[340335074,1729061440203,-154.992576,0.00012329,2]
[340335075,1729061440214,-151.0,0.00012329,2]
[340335076,1729061440225,-151.0,0.00012329,2]
[340335077,1729061440236,-151.0,0.00012329,2]
[340335078,1729061440248,-151.0,0.00012329,2]
[340335079,1729061440258,-151.0,0.00012329,2]
[340335080,1729061440268,-151.0,0.00012329,2]
[340335081,1729061440279,-151.0,0.00012329,2]
[340335082,1729061440288,-151.0,0.00012329,2]
[340335083,1729061440298,-151.0,0.00012329,2]
[340335084,1729061440307,-151.0,0.00012329,2]
[340335085,1729061440318,-151.0,0.00012329,2]
[340335086,1729061440327,-151.0,0.00012329,2]
[340335087,1729061440337,-151.0,0.00012329,2]
[340335088,1729061440346,-151.0,0.00012329,2]
[340335089,1729061440355,-151.0,0.00012329,2]
[340335090,1729061440364,-151.0,0.00012329,2]
[340335091,1729061440374,-151.0,0.00012329,2]
[340335092,1729061440383,-151.0,0.00012329,2]
[340335093,1729061440395,-151.0,0.00012329,2]
[340335094,1729061440404,-228.460413,0.00012329,2]
[340335095,1729061440413,-238.933426,0.00012329,2]
[340335096,1729061440424,-238.933426,0.00012329,2]
[340335097,1729061440434,-238.933426,0.00012329,2]
[340335098,1729061440444,-238.933426,0.00012329,2]
[340335099,1729061440454,-238.933426,0.00012329,2]
[340335100,1729061440463,-238.933426,0.00012329,2]
[340335101,1729061440473,-238.933426,0.00012329,2]
[340335102,1729061440482,-238.933426,0.00012329,2]
[340335103,1729061440491,-238.933426,0.00012329,2]
[340335104,1729061440501,-238.933426,0.00012329,2]
[340335105,1729061440511,-238.933426,0.00012329,2]
[340335106,1729061440520,-238.933426,0.00012329,2]
[340335107,1729061440530,-238.933426,0.00012329,2]
[340335108,1729061440539,-238.933426,0.00012329,2]
[340335109,1729061440548,-238.933426,0.00012329,2]
[340335110,1729061440558,-238.933426,0.00012329,2]
[340335111,1729061440567,-151.0,0.00012329,2]
[340335112,1729061440577,-151.0,0.00012329,2]
[340335113,1729061440587,-151.0,0.00012329,2]
[340335114,1729061440596,-151.0,0.00012329,2]
[340335115,1729061440606,-151.0,0.00012329,2]
[340335116,1729061440617,-151.0,0.00012329,2]
[340335117,1729061440628,-151.0,0.00012329,2]
[340335118,1729061440638,-207.185637,0.00012329,2]
[340335119,1729061440651,-279.879852,0.00012329,2]
[340335120,1729061440660,-151.0,0.00012329,2]
[340335121,1729061440670,-151.0,0.00012329,2]
[340335122,1729061440679,-151.0,0.00012329,2]
[340335123,1729061440688,-151.0,0.00012329,2]
[340335124,1729061440698,-154.065369,0.00012329,2]
[340335125,1729061440707,-972.474533,0.00012329,2]
[340335126,1729061440716,-972.474533,0.00012329,2]
[340335127,1729061440725,-972.474533,0.00012329,2]
[340335128,1729061440735,-972.474533,0.00012329,2]
[340335129,1729061440744,-972.474533,0.00012329,2]
[340335130,1729061440753,-972.474533,0.00012329,2]
[340335131,1729061440762,-972.474533,0.00012329,2]
[340335132,1729061440771,-972.474533,0.00012329,2]
[340335133,1729061440780,-972.474533,0.00012329,2]
[340335134,1729061440790,-972.474533,0.00012329,2]
[340335135,1729061440799,-972.474533,0.00012329,2]
[340335136,1729061440808,-972.474533,0.00012329,2]
[340335137,1729061440817,-972.474533,0.00012329,2]
[340335138,1729061440826,-972.474533,0.00012329,2]
[340335139,1729061440835,-972.474533,0.00012329,2]
[340335140,1729061440845,-972.474533,0.00012329,2]
[340335141,1729061440855,-972.474533,0.00012329,2]
[340335142,1729061440865,-972.474533,0.00012329,2]
[340335143,1729061440874,-972.474533,0.00012329,2]
[340335144,1729061440883,-972.474529,0.00012329,2]
[340335145,1729061440893,-279.178078,0.00012329,2]
[340335146,1729061440902,-279.178078,0.00012329,2]
[340335147,1729061440911,-151.0,0.00012329,2]
[340335148,1729061440920,-171.981552,0.00012329,2]
[340335149,1729061440929,-151.0,0.00012329,2]
[340335150,1729061440938,-500.0,0.0001233,2]
[340335151,1729061440948,-501.71456249,0.00012373,2]
[340335152,1729061440957,-166.67,0.00012445,2]
[340335153,1729061440966,-167.66,0.00012445,2]
[340335154,1729061440975,-158.28,0.00012603,2]
[340335155,1729061440984,-1083.84,0.00012685,2]
[340335156,1729061440993,-151.0,0.00012893,2]
[340335157,1729061441002,-276.711013,0.00012893,2]
[340335158,1729061441011,-238.933426,0.00012893,2]
[340335159,1729061441020,-238.933426,0.00012893,2]
[340335160,1729061441029,-752.22937584,0.00012942,2]
[340335161,1729061441038,-555.61539459,0.00013,2]
[340335162,1729061441047,-150.0,0.00013,2]
[340335163,1729061441056,-150.0,0.00013,2]
[340335164,1729061441065,-255.44409801,0.00013,2]
[340335165,1729061441221,-150.0,0.00013,2]
[340335166,1729061441231,-150.0,0.00013,2]
[340335167,1729061441240,-150.0,0.00013,2]
[340335168,1729061441249,-150.0,0.00013,2]
[340335169,1729061441259,-150.0,0.00013,2]
[340335170,1729061441268,-150.0,0.00013,2]
[340335171,1729061441277,-150.0,0.00013,2]
[340335172,1729061441286,-150.0,0.00013,2]
[340335173,1729061441295,-150.0,0.00013,2]
[340335174,1729061441304,-150.0,0.00013,2]
[340335175,1729061441314,-150.0,0.00013,2]
[340335176,1729061441323,-166.67,0.00013129,2]
[340335177,1729061441332,-158.28,0.00013151,2]
[340335178,1729061441341,-176.71,0.00013176,2]
[340335179,1729061441351,-500.0,0.00013274,2]
[340335180,1729061441360,-587.0,0.0001329,2]
[340335181,1729061441370,-500.0,0.0001331,2]
[340335182,1729061441379,-281.43792597,0.0001331,2]
[340335183,1729061441388,-500.0,0.0001331,2]
[340335184,1729061441399,-500.0,0.0001331,2]
[340335185,1729061441408,-500.0,0.0001331,2]
[340335186,1729061441417,-500.0,0.0001331,2]
[340335187,1729061441426,-500.0,0.0001331,2]
[340335188,1729061441435,-555.61539459,0.00013311,2]
[340335189,1729061441444,-255.44409801,0.00013311,2]
[340335190,1729061441453,-180.0,0.0001336,2]
[340335191,1729061441463,-1000.0,0.00013397,2]
[340335192,1729061441472,-566.27,0.00013418,2]
[340335193,1729061441481,-336.92,0.00013419,2]
[340335194,1729061441491,-1559.78,0.00013424,2]
[340335195,1729061441500,-1559.78,0.00013424,2]
[340335196,1729061441509,-1559.78,0.00013424,2]
[340335197,1729061441518,-1559.78,0.00013424,2]
[340335198,1729061441528,-1559.78,0.00013424,2]
[340335199,1729061441537,-1559.78,0.00013424,2]
[340335200,1729061441546,-1559.78,0.00013424,2]
[340335201,1729061441555,-1559.78,0.00013424,2]
[340335202,1729061441565,-1559.78,0.00013424,2]
[340335203,1729061441574,-1559.78,0.00013424,2]
[340335204,1729061441583,-1559.78,0.00013424,2]
[340335205,1729061441592,-1559.78,0.00013424,2]
[340335206,1729061441602,-1559.78,0.00013424,2]
[340335207,1729061441611,-1559.78,0.00013424,2]
[340335208,1729061441620,-1559.78,0.00013424,2]
[340335209,1729061441630,-1559.78,0.00013424,2]
[340335210,1729061441639,-1559.78,0.00013424,2]
[340335211,1729061441651,-1559.78,0.00013424,2]
[340335212,1729061441660,-1559.78,0.00013424,2]
[340335213,1729061441670,-1559.78,0.00013424,2]
[340335214,1729061441679,-1559.78,0.00013424,2]
[340335215,1729061441689,-1559.78,0.00013424,2]
[340335216,1729061441698,-1559.78,0.00013424,2]
[340335217,1729061441707,-1559.96,0.00013424,2]
[340335218,1729061441716,-200.0,0.00013468,2]
[340335219,1729061441725,-555.61539459,0.00013623,2]
[340335220,1729061441734,-255.44409801,0.00013623,2]
[340335221,1729061441744,-150.0,0.00013656,2]
[340335222,1729061441752,-500.0,0.00013698,2]
[340335223,1729061441762,-500.0,0.00013699,2]
[340335224,1729061441771,-500.0,0.00013699,2]
[340335225,1729061441780,-500.0,0.00013699,2]
[340335226,1729061441790,-500.0,0.00013699,2]
[340335227,1729061441799,-500.0,0.00013699,2]
[340335228,1729061441808,-206.35443516,0.00013699,2]
[340335229,1729061441816,-200.0,0.00013699,2]
[340335230,1729061441826,-500.0,0.00013699,2]
[340335231,1729061441835,-208.84295,0.00013699,2]
[340335232,1729061441844,-500.0,0.000137,2]
[340335233,1729061441854,-153.171996,0.000138,2]
[340335234,1729061441866,-279.178078,0.000138,2]
[340335235,1729061441875,-279.178078,0.000138,2]
[340335236,1729061441884,-151.0,0.000138,2]
[340335237,1729061441895,-150.0,0.00013811,2]
[340335238,1729061441905,-166.67,0.00013814,2]
[340335239,1729061441914,-279.178078,0.000139,2]
[340335240,1729061441923,-279.178078,0.000139,2]
[340335241,1729061441934,-555.61539459,0.00013934,2]
[340335242,1729061441946,-255.44409801,0.00013934,2]
[340335243,1729061441957,-650.0,0.00014,2]
[340335244,1729061441966,-374.55720706,0.0001417,2]
[340335245,1729061441975,-202.05925672,0.00014173,2]
[340335246,1729061441985,-5029.07895549,0.00014179,3]
[340335247,1729061441994,-35203.5526884,0.0001418,3]
[340335248,1729061442003,-500.0,0.00014189,2]
[340335249,1729061442012,-500.0,0.00014199,2]
[340335250,1729061442021,-500.0,0.00014199,2]
[340335251,1729061442031,-279.178078,0.000142,2]
[340335252,1729061442041,-279.17807,0.000142,2]
[340335253,1729061442050,-151.0,0.000142,2]
[340335254,1729061442060,-238.933426,0.000142,2]
[340335255,1729061442069,-238.933435,0.000142,2]
[340335256,1729061442078,-555.61539459,0.00014246,2]
[340335257,1729061442087,-255.44409801,0.00014246,2]
[340335258,1729061442096,-500.0,0.00014273,2]
[340335259,1729061442105,-150.0,0.00014312,2]
[340335260,1729061442114,-5029.07895549,0.00014448,3]
[340335261,1729061442123,-150.0,0.00014468,2]
[340335262,1729061442133,-166.67,0.00014499,2]
[340335263,1729061442143,-167.66,0.00014499,2]
[340335264,1729061442152,-555.61539459,0.00014557,2]
[340335265,1729061442161,-255.44409801,0.00014557,2]
[340335266,1729061442171,-823.0,0.00014604,2]
[340335267,1729061442180,-150.0,0.00014623,2]
[340335268,1729061442190,-545.77804823,0.00014644,2]
[340335269,1729061442199,-500.0,0.00014644,2]
[340335270,1729061442208,-1000.0,0.00014737,2]
[340335271,1729061442218,-336.92,0.00014761,2]
[340335272,1729061442227,-200.0,0.00014814,2]
[340335273,1729061442236,-176.71,0.00014822,2]
[340335274,1729061442246,-156.53,0.00014825,2]
[340335275,1729061442255,-555.61539459,0.00014868,2]
[340335276,1729061442265,-255.44409801,0.00014868,2]
[340335277,1729061442274,-5029.07895549,0.00014948,3]
[340335278,1729061442283,-150.0,0.00014968,2]
[340335279,1729061442292,-500.0,0.00014999,2]
[340335280,1729061442301,-4770.0,0.00015,2]
[340335281,1729061442310,-856.0,0.00015,2]
[340335282,1729061442319,-300.0,0.00015068,2]
[340335283,1729061442328,-500.0,0.0001507,2]
[340335284,1729061442338,-5029.07895549,0.00015149,3]
[340335285,1729061442347,-555.61539459,0.0001518,2]
[340335287,1729061442356,-255.44409801,0.0001518,2]
[340335288,1729061442365,-150.0,0.00015434,2]
[340335289,1729061442374,-555.61539459,0.00015491,2]
[340335290,1729061442383,-255.44409801,0.00015491,2]
[340335291,1729061442392,-150.0,0.00015624,2]
[340335292,1729061442403,-1006.67102394,0.00015642,2]
[340335293,1729061442412,-566.27,0.00015682,2]
[340335294,1729061442421,-150.0,0.00015803,2]
[340335295,1729061442431,-555.61539459,0.00015803,2]
[340335296,1729061442441,-255.44409801,0.00015803,2]
[340335297,1729061442452,-150.0,0.00015936,2]
[340335298,1729061442462,-5029.07895549,0.00015968,3]
[340335299,1729061442471,-330.9,0.00015987,2]
[340335300,1729061442480,-700.0,0.00016,2]
[340335301,1729061442489,-500.0,0.00016014,2]
[340335302,1729061442499,-1152.0,0.00016048,2]
[340335303,1729061442508,-1000.0,0.00016077,2]
[340335304,1729061442518,-567.0,0.00016102,2]
[340335305,1729061442528,-336.92,0.00016102,2]
[340335306,1729061442538,-555.61539459,0.00016114,2]
[340335307,1729061442547,-255.44409801,0.00016114,2]
[340335308,1729061442556,-761.47,0.00016116,2]
[340335309,1729061442566,-200.0,0.00016161,2]
[340335310,1729061442575,-150.0,0.00016245,2]
[340335311,1729061442586,-150.0,0.0001628,2]
[340335312,1729061442595,-5029.07895549,0.0001641,3]
[340335313,1729061442604,-555.61539459,0.00016425,2]
[340335314,1729061442614,-255.44409801,0.00016425,2]
[340335315,1729061442624,-300.0,0.00016438,2]
[340335316,1729061442633,-155.86,0.00016438,2]
[340335317,1729061442642,-150.0,0.00016438,2]
[340335318,1729061442652,-415.58023945,0.0001644,2]
[340335319,1729061442661,-555.61539459,0.00016737,2]
[340335320,1729061442672,-255.44409801,0.00016737,2]
[340335321,1729061442681,-150.0,0.00016871,2]
[340335322,1729061442691,-150.0,0.00016936,2]
[340335323,1729061442700,-555.61539459,0.00017048,2]
[340335324,1729061442710,-255.44409801,0.00017048,2]
[340335325,1729061442720,-150.0,0.00017056,2]
[340335326,1729061442730,-150.0,0.00017304,2]
[340335327,1729061442739,-555.61539459,0.0001736,2]
[340335328,1729061442750,-255.44409801,0.0001736,2]
[340335329,1729061442759,-500.0,0.00017384,2]
[340335330,1729061442768,-150.0,0.00017404,2]
[340335331,1729061442777,-5029.07895549,0.00017572,3]
[340335332,1729061442786,-150.0,0.00017592,2]
[340335333,1729061442795,-173.79,0.00017592,2]
[340335334,1729061442804,-800.82740497,0.00017621,2]
[340335335,1729061442814,-1613.0,0.00017635,2]
[340335336,1729061442823,-555.61539459,0.00017671,2]
[340335337,1729061442833,-255.44409801,0.00017671,2]
[340335338,1729061442843,-150.0,0.00017736,2]
[340335339,1729061442852,-500.0,0.0001781,2]
[340335340,1729061442865,-150.0,0.00017868,2]
[340335341,1729061442875,-566.27,0.00017946,2]
[340335342,1729061442884,-555.61539459,0.00017982,2]
[340335343,1729061442894,-255.44409801,0.00017982,2]
[340335344,1729061442903,-5029.07895549,0.0001799,3]
[340335345,1729061442912,-750.0,0.00018,2]
[340335346,1729061442922,-1069.27,0.00018,7]
[340335347,1729061442932,-150.0,0.00018138,2]
[340335348,1729061442943,-150.0,0.00018169,2]
[340335349,1729061442954,-161.56026729,0.00018194,2]
[340335350,1729061442963,-150.0,0.00018247,2]
[340335351,1729061442972,-10058.157911,0.0001826,4]
[340335352,1729061442982,-555.61539459,0.00018294,2]
[340335353,1729061442992,-255.44409801,0.00018294,2]
[340335354,1729061443002,-1518.14,0.00018301,2]
[340335355,1729061443011,-150.0,0.00018601,2]
[340335356,1729061443020,-555.61539459,0.00018605,2]
[340335357,1729061443029,-255.44409801,0.00018605,2]
[340335358,1729061443038,-150.0,0.00018605,2]
[340335359,1729061443048,-150.0,0.00018679,2]
[340335360,1729061443057,-5029.07895549,0.00018783,4]
[340335361,1729061443065,-5029.07895549,0.00018803,4]
[340335362,1729061443075,-7226.26013617,0.00018813,2]
[340335363,1729061443084,-150.0,0.00018872,2]
[340335364,1729061443094,-150.0,0.00018903,2]
[340335365,1729061443104,-555.61539459,0.00018917,2]
[340335366,1729061443113,-255.44409801,0.00018917,2]
[340335368,1729061443123,-5029.07895549,0.0001899,4]
[340335370,1729061443132,-500.0,0.00019,2]
[340335372,1729061443141,-504.21,0.00019,2]
[340335374,1729061443151,-1000.0,0.00019,2]
[340335376,1729061443161,-1500.16,0.00019,2]
[340335378,1729061443171,-150.0,0.00019034,2]
[340335379,1729061443180,-136127.0,0.000192,2]
[340335380,1729061443188,-555.61539459,0.00019228,2]
[340335381,1729061443198,-255.44409801,0.00019228,2]
[340335382,1729061443207,-363.19,0.0001926,2]
[340335383,1729061443217,-304.76,0.0001926,2]
[340335384,1729061443226,-429.69,0.0001926,2]
[340335385,1729061443236,-429.35,0.0001926,2]
[340335386,1729061443245,-721.12,0.0001926,2]
[340335387,1729061443255,-352.59,0.0001926,2]
[340335388,1729061443264,-429.69,0.0001926,2]
[340335389,1729061443274,-279.88,0.0001926,2]
[340335390,1729061443284,-2258.0,0.00019379,2]
[340335391,1729061443294,-5029.07895549,0.00019451,4]
[340335392,1729061443303,-150.0,0.00019466,2]
[340335393,1729061443313,-150.0,0.0001949,2]
[340335394,1729061443324,-555.61539459,0.00019539,2]
[340335395,1729061443334,-255.44409801,0.00019539,2]
[340335396,1729061443345,-150.0,0.00019559,2]
[340335397,1729061443357,-500.0,0.00019576,2]
[340335398,1729061443366,-5029.07895549,0.00019581,4]
[340335399,1729061443375,-5029.07895549,0.00019591,4]
[340335400,1729061443384,-11518.0,0.000196,3]
[340335401,1729061443395,-15939.40870236,0.00019601,2]
[340335402,1729061443404,-70407.1053769,0.0001969,4]
[340335403,1729061443413,-555.61539459,0.00019851,2]
[340335404,1729061443423,-255.44409801,0.00019851,2]
[340335405,1729061443432,-5029.07895549,0.0001988,4]
[340335406,1729061443441,-5029.07895549,0.0001989,4]
[340335407,1729061443451,-150.0,0.00019899,2]
[340335408,1729061443461,-11000.0,0.000199,2]
[340335409,1729061443470,-5029.07895549,0.0001997,4]
[340335410,1729061443479,-5029.07895549,0.0001998,4]
[340335411,1729061443489,-500.0,0.00019989,2]
[340335412,1729061443499,-5029.07895549,0.0001999,4]
[340335413,1729061443508,-500.0,0.00019999,2]
[340335414,1729061443518,-223.01890373,0.00019999,2]
[340335415,1729061443527,-1547.11574668,0.0002,30]
[340335416,1729061443537,-1715.14,0.0002,2]
[340335417,1729061443546,-21590.0,0.0002,7]
[340335418,1729061443555,-800.0,0.0002,2]
[340335419,1729061443565,-150.0,0.0002,2]
[340335420,1729061443574,-500.0,0.00020002,2]
[340335421,1729061443584,-11518.0,0.000201,5]
[340335422,1729061443593,-555.61539459,0.00020162,2]
[340335423,1729061443603,-255.44409801,0.00020162,2]
[340335424,1729061443613,-150.0,0.00020209,2]
[340335425,1729061443622,-566.27,0.0002021,2]
[340335426,1729061443632,-150.0,0.00020215,2]
[340335427,1729061443641,-150.0,0.00020302,2]
[340335428,1729061443652,-150.0,0.00020332,2]
[340335429,1729061443661,-500.0,0.00020399,2]
[340335430,1729061443670,-555.61539459,0.00020474,2]
[340335431,1729061443680,-255.44409801,0.00020474,2]
[340335432,1729061443690,-150.0,0.00020707,2]
[340335433,1729061443699,-150.0,0.00020707,2]
[340335434,1729061443709,-150.0,0.00020764,2]
[340335435,1729061443719,-555.61539459,0.00020785,2]
[340335436,1729061443728,-255.44409801,0.00020785,2]
[340335437,1729061443738,-150.0,0.00020871,2]
[340335438,1729061443747,-544.49,0.00020904,2]
[340335439,1729061443757,-313.477462,0.00021,2]
[340335440,1729061443766,-555.61539459,0.00021097,2]
[340335441,1729061443776,-255.44409801,0.00021097,2]
[340335442,1729061443785,-150.0,0.00021113,2]
[340335443,1729061443795,-150.0,0.00021197,2]
[340335444,1729061443804,-1376.0,0.00021295,2]
[340335445,1729061443814,-555.61539459,0.00021408,2]
[340335446,1729061443823,-255.44409801,0.00021408,2]
[340335447,1729061443833,-150.0,0.00021408,2]
[340335448,1729061443843,-152.0,0.00021475,3]
[340335449,1729061443854,-150.0,0.00021527,2]
[340335450,1729061443865,-150.0,0.00021629,2]
[340335451,1729061443874,-555.61539459,0.00021719,2]
[340335452,1729061443883,-255.44409801,0.00021719,2]
[340335453,1729061443892,-500.0,0.00021768,2]
[340335454,1729061443903,-500.0,0.00021917,30]
[340335455,1729061443913,-500.0,0.00021917,30]
[340335456,1729061443922,-528.12158742,0.00021917,30]
[340335457,1729061443932,-155.57531857,0.00021917,2]
[340335458,1729061443942,-2019.9296496,0.00021917,2]
[340335459,1729061443952,-170.01,0.00021918,2]
[340335460,1729061443961,-157.85,0.00021918,2]
[340335461,1729061443971,-150.0,0.00021924,4]
[340335462,1729061443981,-850.0,0.00022,2]
[340335463,1729061443990,-555.61539459,0.00022031,4]
[340335464,1729061443999,-255.44409801,0.00022031,4]
[340335465,1729061444009,-150.0,0.00022062,2]
[340335466,1729061444018,-221.0,0.0002208,2]
[340335467,1729061444028,-897.29,0.00022137,30]
[340335468,1729061444037,-150.0,0.00022183,4]
[340335469,1729061444046,-500.0,0.00022194,2]
[340335470,1729061444055,-156.0,0.0002231,9]
[340335471,1729061444065,-555.61539459,0.00022342,4]
[340335472,1729061444074,-255.44409801,0.00022342,4]
[340335473,1729061444083,-158.93,0.00022416,2]
[340335474,1729061444092,-566.27,0.00022473,2]
[340335475,1729061444101,-150.0,0.00022494,2]
[340335476,1729061444111,-500.0,0.00022499,2]
[340335477,1729061444120,-3000.0,0.000225,2]
[340335478,1729061444129,-555.61539459,0.00022654,4]
[340335479,1729061444139,-255.44409801,0.00022654,4]
[340335480,1729061444148,-150.0,0.00022735,4]
[340335481,1729061444157,-221.0,0.0002281,2]
[340335482,1729061444166,-150.0,0.00022839,4]
[340335483,1729061444175,-500.0,0.00022889,2]
[340335484,1729061444185,-150.0,0.00022927,2]
[340335485,1729061444194,-555.61539459,0.00022965,4]
[340335486,1729061444203,-255.44409801,0.00022965,4]
[340335487,1729061444212,-47032.14,0.00023,5]
[340335488,1729061444222,-891.06,0.00023,14]
[340335489,1729061444231,-555.61539459,0.00023276,4]
[340335490,1729061444240,-150.0,0.00023276,4]
[340335491,1729061444249,-255.44409801,0.00023276,4]
[340335492,1729061444258,-150.0,0.00023276,4]
[340335493,1729061444267,-150.0,0.00023276,4]
[340335494,1729061444276,-331.69176595,0.000233,2]
[340335495,1729061444286,-1061.34342187,0.000233,2]
[340335496,1729061444295,-181.0,0.000233,2]
[340335497,1729061444305,-150.0,0.0002336,2]
[340335498,1729061444314,-152.0,0.0002338,4]
[340335499,1729061444324,-151.0,0.00023465,2]
[340335500,1729061444333,-150.0,0.00023495,4]
[340335501,1729061444342,-221.0,0.0002354,2]
[340335502,1729061444351,-150.0,0.00023547,4]
[340335503,1729061444361,-555.61539459,0.00023588,4]
[340335504,1729061444370,-255.44409801,0.00023588,4]
[340335505,1729061444380,-150.0,0.00023792,2]
[340335506,1729061444389,-500.0,0.00023888,2]
[340335507,1729061444399,-1000.0,0.00023889,2]
[340335508,1729061444409,-500.0,0.00023889,2]
[340335509,1729061444418,-465.2,0.00023889,2]
[340335510,1729061444427,-555.61539459,0.00023899,4]
[340335511,1729061444437,-255.44409801,0.00023899,4]
[340335512,1729061444446,-500.0,0.0002396,2]
[340335513,1729061444456,-2110.0,0.00024,2]
[340335514,1729061444465,-937.2310169,0.00024,25]
[340335515,1729061444475,-907.19858325,0.00024,2]
[340335516,1729061444484,-900.0,0.00024,2]
[340335517,1729061444493,-150.0,0.00024151,4]
[340335518,1729061444503,-3000.0,0.000242,2]
[340335519,1729061444512,-3000.0,0.000242,2]
[340335520,1729061444522,-3000.0,0.000242,2]
[340335521,1729061444531,-3000.0,0.000242,2]
[340335522,1729061444540,-3000.0,0.000242,2]
[340335523,1729061444550,-1136.46,0.000242,2]
[340335524,1729061444560,-150.0,0.00024211,4]
[340335525,1729061444570,-555.61539459,0.00024211,4]
[340335526,1729061444579,-255.44409801,0.00024211,4]
[340335527,1729061444589,-150.0,0.00024225,2]
[340335528,1729061444599,-173.79,0.00024225,2]
[340335529,1729061444608,-228.0,0.0002425,2]
[340335530,1729061444617,-221.0,0.0002427,2]
[340335531,1729061444626,-150.0,0.00024358,4]
[340335532,1729061444636,-500.0,0.00024386,2]
[340335533,1729061444646,-2355.0,0.00024463,7]
[340335534,1729061444655,-250.12749381,0.000245,30]
[340335535,1729061444665,-2110.0,0.000245,2]
[340335536,1729061444675,-555.61539459,0.00024522,4]
[340335537,1729061444684,-255.44409801,0.00024522,4]
[340335538,1729061444693,-8278.652512,0.00024657,7]
[340335539,1729061444702,-176.574251,0.00024657,7]
[340335540,1729061444711,-375.0,0.00024657,2]
[340335541,1729061444721,-1128.0,0.00024657,3]
[340335542,1729061444730,-1128.0,0.00024657,3]
[340335543,1729061444740,-1128.0,0.00024657,3]
[340335544,1729061444749,-1128.0,0.00024657,3]
[340335545,1729061444759,-1128.0,0.00024657,3]
[340335546,1729061444768,-1128.0,0.00024657,3]
[340335547,1729061444777,-1128.0,0.00024657,3]
[340335548,1729061444787,-1128.0,0.00024657,3]
[340335549,1729061444797,-1128.0,0.00024657,3]
[340335550,1729061444807,-1128.0,0.00024657,3]
[340335551,1729061444816,-1128.0,0.00024657,3]
[340335552,1729061444827,-1128.0,0.00024657,3]
[340335553,1729061444837,-1128.0,0.00024657,3]
[340335554,1729061444848,-1128.0,0.00024657,3]
[340335555,1729061444861,-1128.0,0.00024657,3]
[340335556,1729061444871,-1128.0,0.00024657,3]
[340335557,1729061444882,-1128.0,0.00024657,3]
[340335558,1729061444892,-1128.0,0.00024657,3]
[340335559,1729061444908,-1128.0,0.00024657,3]
[340335560,1729061445056,-1128.0,0.00024657,3]
[340335561,1729061445066,-1128.0,0.00024657,3]
[340335562,1729061445075,-1128.0,0.00024657,3]